bitfinex-derivatives/quotes_BTCF0:USTF0_20250416
["timestamp","ask_amount","ask_price","bid_price","bid_amount"]
[1744789976194,0.15231017,83444.0,83443.0,0.6541118]
[1744789976985,0.03245977,83444.0,83443.0,0.6541118]
[1744789977386,0.15231017,83444.0,83443.0,0.6541118]
[1744789979490,0.18241017,83444.0,83443.0,0.6541118]
[1744789980590,0.21461017,83444.0,83443.0,0.6541118]
[1744789982592,0.21461017,83444.0,83443.0,0.2933118]
[1744789982793,0.21461017,83444.0,83443.0,0.6541118]
[1744789984298,0.21461017,83444.0,83443.0,0.5913118]
[1744789984497,0.21461017,83444.0,83443.0,0.5600118]
[1744789985898,0.21461017,83444.0,83443.0,0.5915118]
[1744789988896,0.21461017,83444.0,83443.0,0.6244118]
[1744789990497,0.18241017,83444.0,83443.0,0.6244118]
[1744789991697,0.00025977,83444.0,83443.0,0.6244118]
[1744789992093,0.00017977,83444.0,83443.0,0.6244118]
[1744789992297,0.00025977,83444.0,83443.0,0.6244118]
[1744789992498,0.00010801,83453.0,83452.0,0.1198389]
[1744789992704,0.1198321,83457.0,83456.0,0.1797482]
[1744789992906,0.1518321,83457.0,83456.0,0.2561082]
[1744789994406,0.1518321,83457.0,83456.0,0.6169082]
[1744789994806,0.1528321,83457.0,83456.0,0.6169082]
[1744789995201,0.1548321,83457.0,83456.0,0.6169082]
[1744789995400,0.1548321,83457.0,83456.0,0.62881186]
[1744789998812,0.003,83457.0,83456.0,0.62881186]
[1744789999509,0.00308,83457.0,83456.0,0.62881186]
[1744790000908,0.1229117,83457.0,83456.0,0.6169082]
[1744790001413,0.1555117,83457.0,83456.0,0.6169082]
[1744790005317,0.1555117,83457.0,83456.0,0.2561082]
[1744790006616,0.1555117,83457.0,83456.0,0.6169082]
[1744790008620,0.0356,83457.0,83456.0,0.6500082]
[1744790008810,0.00308,83457.0,83456.0,0.6500082]
[1744790009919,0.1229117,83457.0,83456.0,0.6500082]
[1744790010422,0.1545117,83457.0,83456.0,0.6500082]
[1744790012126,0.1545117,83457.0,83456.0,0.2892082]
[1744790012425,0.1545117,83457.0,83456.0,0.6500082]
[1744790015928,0.1857117,83457.0,83456.0,0.6500082]
[1744790016226,0.1857117,83457.0,83456.0,0.43716]
[1744790016916,0.1198432,83449.0,83448.0,0.07645977]
[1744790017523,0.1522432,83449.0,83448.0,0.07645977]
[1744790017723,0.1843432,83449.0,83448.0,0.07645977]
[1744790017930,0.5451432,83449.0,83448.0,0.07645977]
[1744790018124,0.5451432,83449.0,83440.0,0.3608]
[1744790018125,0.1198547,83441.0,83440.0,0.3608]
[1744790018514,0.2159547,83441.0,83440.0,0.3608]
[1744790020131,0.2169547,83441.0,83440.0,0.3608]
[1744790021522,0.2159547,83441.0,83440.0,0.3618]
[1744790021922,0.2159547,83441.0,83440.0,0.3628]
[1744790023831,0.2159547,83441.0,83440.0,0.396]
[1744790024331,0.2159547,83441.0,83440.0,0.5158561]
[1744790025130,0.2159547,83441.0,83440.0,0.1550561]
[1744790026535,0.2159547,83441.0,83440.0,0.0352]
[1744790027232,0.2159547,83441.0,83440.0,0.002]
[1744790028721,0.2159547,83441.0,83440.0,0.1218561]
[1744790029125,0.2159547,83441.0,83440.0,0.1533561]
[1744790035838,0.2159547,83441.0,83440.0,0.0335]
[1744790036727,0.2159547,83441.0,83440.0,0.1533561]
[1744790038230,0.2159547,83441.0,83440.0,0.0335]
[1744790039340,0.2159547,83441.0,83440.0,0.1533561]
[1744790039740,0.2159547,83441.0,83440.0,0.0335]
[1744790040336,0.2159547,83441.0,83440.0,0.1533561]
[1744790040535,0.1843547,83441.0,83440.0,0.1533561]
[1744790040739,0.1843547,83441.0,83440.0,0.2189561]
[1744790041132,0.1844347,83441.0,83440.0,0.2189561]
[1744790041333,0.1844347,83441.0,83440.0,0.1857561]
[1744790042834,0.1844347,83441.0,83440.0,0.1533561]
[1744790044036,0.1844347,83441.0,83440.0,0.0335]
[1744790044334,0.5452347,83441.0,83440.0,0.0335]
[1744790046638,0.5452347,83441.0,83440.0,0.1533561]
[1744790046836,0.1844347,83441.0,83440.0,0.1533561]
[1744790047033,0.1199347,83441.0,83440.0,0.1533561]
[1744790047233,0.1199347,83441.0,83440.0,0.1844561]
[1744790050738,0.1502347,83441.0,83440.0,0.1844561]
[1744790051043,0.1199347,83441.0,83440.0,0.1844561]
[1744790051242,0.1198547,83441.0,83440.0,0.1844561]
[1744790051443,0.1199347,83441.0,83440.0,0.1844561]
[1744790052036,8e-05,83441.0,83440.0,0.5452561]
[1744790052235,0.05992,83452.0,83451.0,0.1198403]
[1744790052539,0.05992,83452.0,83451.0,0.4806403]
[1744790052934,0.06,83452.0,83451.0,0.4806403]
[1744790053442,0.061,83452.0,83451.0,0.4806403]
[1744790054037,0.061,83452.0,83451.0,0.55576095]
[1744790054835,0.063,83452.0,83451.0,0.55576095]
[1744790055236,0.062,83452.0,83451.0,0.55576095]
[1744790055442,0.06,83452.0,83451.0,0.55576095]
[1744790058050,0.06,83452.0,83451.0,0.5435403]
[1744790059950,0.0919,83452.0,83451.0,0.5435403]
[1744790060141,0.1245,83452.0,83451.0,0.5435403]
[1744790061349,0.06,83452.0,83451.0,0.5435403]
[1744790068349,0.0933,83452.0,83451.0,0.5435403]
[1744790069748,0.0933,83452.0,83451.0,0.1827403]
[1744790069949,0.0933,83452.0,83451.0,0.5435403]
[1744790071154,0.0933,83452.0,83451.0,0.1827403]
[1744790071353,0.0933,83452.0,83451.0,0.5435403]
[1744790073357,0.0933,83452.0,83451.0,0.6197403]
[1744790073856,8e-05,83452.0,83451.0,0.6197403]
[1744790074243,0.1198378,83453.0,83452.0,0.1198389]
[1744790074748,0.1198378,83453.0,83452.0,0.1803389]
[1744790079752,0.1198378,83453.0,83452.0,0.5411389]
[1744790080254,0.1527378,83453.0,83452.0,0.5411389]
[1744790081354,0.0329,83453.0,83452.0,0.5411389]
[1744790081550,0.00010801,83458.0,83457.0,0.1198317]
[1744790081847,0.1198303,83458.0,83457.0,0.1797474]
[1744790082249,0.1818303,83458.0,83457.0,0.2708474]
[1744790082961,0.1848303,83458.0,83457.0,0.2708474]
[1744790086052,0.0348,83458.0,83457.0,0.2708474]
[1744790086253,0.003,83458.0,83457.0,0.2708474]
[1744790088454,0.00308,83458.0,83457.0,0.2708474]
[1744790091757,0.1229103,83458.0,83457.0,0.2708474]
[1744790092063,0.00308,83458.0,83457.0,0.2708474]
[1744790092367,0.1229103,83458.0,83457.0,0.2107474]
[1744790092551,0.1873103,83458.0,83457.0,0.2107474]
[1744790093069,0.1873103,83458.0,83457.0,0.2430474]
[1744790095469,0.1873103,83458.0,83457.0,0.6038474]
[1744790096566,0.1873103,83458.0,83457.0,0.031]
[1744790096754,0.06748,83458.0,83452.0,0.0599194]
[1744790096959,0.0599159,83457.0,83456.0,0.1198317]
[1744790097364,0.2121505,83457.0,83456.0,0.1198317]
[1744790097968,0.2451505,83457.0,83456.0,0.1521317]
[1744790098763,0.2451505,83457.0,83456.0,0.1843317]
[1744790098960,0.2462305,83457.0,83456.0,0.1843317]
[1744790099360,0.2462305,83457.0,83456.0,0.5451317]
[1744790099762,0.2472305,83457.0,83456.0,0.5451317]
[1744790103271,0.2472305,83457.0,83456.0,0.5129317]
[1744790107078,0.2472305,83457.0,83456.0,0.1521317]
[1744790111072,0.2472305,83457.0,83456.0,0.1198317]
[1744790112283,0.0599174,83455.0,83454.0,0.119836]
[1744790112670,0.0599174,83455.0,83454.0,0.149936]
[1744790113474,0.0609174,83455.0,83454.0,0.149936]
[1744790113672,0.1807534,83455.0,83454.0,0.149936]
[1744790113873,0.1817534,83455.0,83454.0,0.149936]
[1744790114179,0.2438534,83455.0,83454.0,0.149936]
[1744790121988,0.6046534,83455.0,83454.0,0.0301]
[1744790122187,0.1198389,83452.0,83451.0,0.2276403]
[1744790122579,0.2169389,83452.0,83451.0,0.1078]
[1744790122985,0.2169389,83452.0,83451.0,0.2276403]
[1744790123577,0.1198418,83450.0,83449.0,0.00017977]
[1744790123983,0.1848418,83450.0,83449.0,0.00017977]
[1744790126282,0.1848418,83450.0,83449.0,0.00117977]
[1744790127683,0.1848418,83450.0,83449.0,0.00017977]
[1744790127891,0.1868418,83450.0,83449.0,0.00017977]
[1744790128090,0.5476418,83450.0,83449.0,0.00017977]
[1744790128392,0.1868418,83450.0,83449.0,0.00017977]
[1744790128590,0.1868418,83450.0,83449.0,0.12002297]
[1744790128893,0.1869218,83450.0,83449.0,0.12002297]
[1744790129093,0.1869218,83450.0,83449.0,0.18422297]
[1744790129485,0.1849218,83450.0,83449.0,0.18422297]
[1744790130484,0.1849218,83450.0,83449.0,0.18522297]
[1744790131892,0.1524218,83450.0,83449.0,0.18522297]
[1744790132092,0.1198418,83450.0,83449.0,0.18522297]
[1744790132386,0.1199218,83450.0,83449.0,0.18522297]
[1744790142713,0.1199218,83450.0,83449.0,0.54602297]
[1744790145004,0.1526218,83450.0,83449.0,0.54602297]
[1744790149611,0.1526218,83450.0,83449.0,0.18522297]
[1744790150402,0.1846218,83450.0,83449.0,0.18522297]
[1744790157017,0.1846218,83450.0,83449.0,0.07725977]
[1744790157205,0.1846218,83450.0,83449.0,0.19710297]
[1744790158712,0.1846218,83450.0,83449.0,0.22970297]
[1744790165612,0.1846218,83450.0,83449.0,0.10985977]
[1744790165819,0.1846218,83450.0,83449.0,0.22970297]
[1744790173417,0.1846218,83450.0,83449.0,0.10985977]
[1744790173730,0.5454218,83450.0,83449.0,0.07725977]
[1744790174517,0.5454218,83450.0,83449.0,0.00117977]
[1744790175233,0.5454218,83450.0,83449.0,0.01018223]
[1744790175431,0.5454218,83450.0,83449.0,0.00117977]
[1744790175929,0.5464218,83450.0,83449.0,0.00117977]
[1744790177731,0.5454218,83450.0,83449.0,0.00017977]
[1744790179533,0.5454218,83450.0,83449.0,0.00919679]
[1744790179931,0.1846218,83450.0,83449.0,0.00919679]
[1744790180236,0.5454218,83450.0,83449.0,0.00919679]
[1744790181236,0.1846218,83450.0,83449.0,0.00919679]
[1744790182437,0.5454218,83450.0,83449.0,0.00919679]
[1744790191446,0.1846218,83450.0,83449.0,0.00919679]
[1744790192743,0.5454218,83450.0,83449.0,0.00919679]
[1744790193851,0.5454218,83450.0,83449.0,0.04209679]
[1744790195946,0.5134218,83450.0,83449.0,0.04209679]
[1744790196142,0.5133418,83450.0,83449.0,0.04209679]
[1744790196339,0.5134218,83450.0,83449.0,0.04209679]
[1744790197147,0.5444218,83450.0,83449.0,0.04209679]
[1744790197949,0.5444218,83450.0,83449.0,0.07249679]
[1744790201745,0.5444218,83450.0,83449.0,0.07349679]
[1744790203053,0.1836218,83450.0,83449.0,0.07349679]
[1744790205952,0.1526218,83450.0,83449.0,0.07349679]
[1744790210251,0.1829218,83450.0,83449.0,0.07349679]
[1744790211553,0.2138218,83450.0,83449.0,0.07349679]
[1744790214359,0.2138218,83450.0,83430.0,0.0001458]
[1744790214360,0.059925,83445.0,83430.0,0.0001458]
[1744790214554,0.4806619,83436.0,83430.0,0.0001458]
[1744790214760,0.1198719,83429.0,83428.0,0.3608]
[1744790214949,0.12884721,83429.0,83428.0,0.3608]
[1744790215150,0.15934721,83429.0,83428.0,0.3608]
[1744790215351,0.15934721,83429.0,83428.0,0.3939]
[1744790215551,0.15934721,83429.0,83428.0,0.5137734]
[1744790215863,0.1198719,83429.0,83428.0,0.5147734]
[1744790216051,0.1198719,83429.0,83428.0,0.5480734]
[1744790217053,0.12886337,83429.0,83428.0,0.5480734]
[1744790217249,0.16016337,83429.0,83428.0,0.5480734]
[1744790217855,0.19066337,83429.0,83428.0,0.5570332]
[1744790218764,0.19066337,83429.0,83428.0,0.1962332]
[1744790224568,0.1816719,83429.0,83428.0,0.1962332]
[1744790224768,0.1816719,83429.0,83428.0,0.0763598]
[1744790225268,0.5424719,83429.0,83428.0,0.0432598]
[1744790225964,0.5424719,83429.0,83428.0,0.0433398]
[1744790226561,0.5424719,83429.0,83428.0,0.00108]
[1744790226757,0.1198777,83425.0,83424.0,0.0001458]
[1744790227163,0.1198791,83424.0,83423.0,0.0306]
[1744790227568,0.1821791,83424.0,83423.0,0.0306]
[1744790227872,0.19125459,83424.0,83423.0,0.0306]
[1744790229376,0.19125459,83424.0,83423.0,0.03938292]
[1744790229871,0.19125459,83424.0,83423.0,0.0306]
[1744790233675,0.19125459,83424.0,83423.0,0.03979764]
[1744790236068,0.19125459,83424.0,83420.0,0.00017977]
[1744790236069,0.1198834,83421.0,83420.0,0.00017977]
[1744790236266,0.4806834,83421.0,83420.0,0.00017977]
[1744790236462,0.5737834,83421.0,83420.0,0.00017977]
[1744790236773,0.58285889,83421.0,83420.0,0.00017977]
[1744790237271,0.58285889,83421.0,83419.0,0.00515467]
[1744790237272,0.1198849,83420.0,83419.0,0.00515467]
[1744790237467,0.1821849,83420.0,83419.0,0.00515467]
[1744790238167,0.19126039,83420.0,83419.0,0.00515467]
[1744790238869,0.19126039,83420.0,83419.0,0.00615467]
[1744790239267,0.19126039,83420.0,83419.0,0.00715467]
[1744790240473,0.19126039,83420.0,83419.0,0.00809915]
[1744790241370,0.55206039,83420.0,83419.0,0.00809915]
[1744790241770,0.55306039,83420.0,83419.0,0.00609915]
[1744790241973,0.55406039,83420.0,83419.0,0.00609915]
[1744790242675,0.1198906,83416.0,83415.0,0.04071041]
[1744790242873,0.1198921,83415.0,83414.0,0.0012]
[1744790243072,0.1843921,83415.0,83414.0,0.01014542]
[1744790243272,0.5451921,83415.0,83414.0,0.0012]
[1744790243679,0.55426759,83415.0,83414.0,0.0012]
[1744790244579,0.55426759,83415.0,83414.0,0.0022]
[1744790244881,0.1198964,83412.0,83405.0,0.07596]
[1744790245070,0.1198964,83412.0,83402.0,0.3608]
[1744790245271,0.1198964,83412.0,83400.0,0.0321]
[1744790245272,0.119905,83406.0,83405.0,0.0001458]
[1744790245476,0.480705,83406.0,83405.0,1e-08]
[1744790245678,0.1199165,83398.0,83397.0,0.0626]
[1744790245872,0.1199165,83398.0,83397.0,0.0627458]
[1744790246070,0.12899199,83398.0,83397.0,0.0627458]
[1744790246985,0.15979199,83398.0,83397.0,0.0627458]
[1744790247877,0.15979199,83398.0,83397.0,0.07393595]
[1744790248081,0.15979199,83398.0,83397.0,0.10633595]
[1744790248782,0.15979199,83398.0,83397.0,0.10933595]
[1744790250679,0.15979199,83398.0,83397.0,0.005]
[1744790250881,0.0599646,83390.0,83389.0,0.00019683]
[1744790251085,0.1199309,83388.0,83387.0,0.0319]
[1744790251477,0.12900639,83388.0,83387.0,0.0319]
[1744790251669,0.19250639,83388.0,83387.0,0.0319]
[1744790252279,0.19250639,83388.0,83387.0,0.0329]
[1744790253475,0.19250639,83388.0,83387.0,0.03298]
[1744790254984,0.19250639,83388.0,83387.0,0.0329]
[1744790256082,0.19450639,83388.0,83387.0,0.0319]
[1744790256588,0.19550639,83388.0,83387.0,0.0319]
[1744790257185,0.0599756,83374.0,83356.0,0.0599879]
[1744790257484,0.0599756,83374.0,83355.0,0.3608]
[1744790257485,0.1199596,83368.0,83367.0,0.01414902]
[1744790257685,0.1199596,83368.0,83367.0,0.00523789]
[1744790258484,0.12903509,83368.0,83367.0,0.00523789]
[1744790258685,0.12903509,83368.0,83367.0,0.12519899]
[1744790258886,0.12903509,83368.0,83367.0,0.18839899]
[1744790259183,0.12903509,83368.0,83367.0,0.06843789]
[1744790259382,0.12903509,83368.0,83367.0,0.07043789]
[1744790259584,0.12903509,83368.0,83367.0,0.15555789]
[1744790260392,0.12903509,83368.0,83367.0,0.15355789]
[1744790260585,0.12903509,83368.0,83367.0,0.15455789]
[1744790261591,0.12903509,83368.0,83367.0,0.16368774]
[1744790262497,0.12903509,83368.0,83367.0,0.00823789]
[1744790262683,0.16103509,83368.0,83367.0,0.00815789]
[1744790262987,0.16103509,83368.0,83367.0,0.00823789]
[1744790263190,0.19333509,83368.0,83367.0,0.00815789]
[1744790263489,0.19333509,83368.0,83367.0,0.00823789]
[1744790263791,0.19333509,83368.0,83367.0,0.00815789]
[1744790263977,0.19333509,83368.0,83367.0,0.00823789]
[1744790264182,0.19333509,83368.0,83367.0,0.04103789]
[1744790264382,0.19333509,83368.0,83367.0,0.03903789]
[1744790264689,0.19333509,83368.0,83367.0,0.04103789]
[1744790265986,0.16103509,83368.0,83367.0,0.04103789]
[1744790266477,0.12903509,83368.0,83367.0,0.04103789]
[1744790268089,0.16163509,83368.0,83367.0,0.04103789]
[1744790275591,0.16163509,83368.0,83367.0,0.00815789]
[1744790275888,0.22483509,83368.0,83367.0,0.00823789]
[1744790276686,0.19243509,83368.0,83367.0,0.00823789]
[1744790277079,0.19243509,83368.0,83367.0,0.04103789]
[1744790277694,0.19243509,83368.0,83367.0,0.03903789]
[1744790278880,0.119964,83365.0,83364.0,0.00912033]
[1744790279086,0.1199654,83364.0,83363.0,0.000108]
[1744790279289,0.2152654,83364.0,83363.0,0.000108]
[1744790279491,0.22434089,83364.0,83363.0,0.000108]
[1744790279893,0.19424089,83364.0,83363.0,0.000108]
[1744790280193,0.19424089,83364.0,83363.0,0.04051394]
[1744790280385,0.19424089,83364.0,83363.0,0.063708]
[1744790280898,0.19424089,83364.0,83363.0,0.065708]
[1744790281988,0.16094089,83364.0,83363.0,0.1856748]
[1744790282596,0.12904089,83364.0,83363.0,0.1856748]
[1744790283096,0.12904089,83364.0,83363.0,0.19450955]
[1744790284495,0.00907549,83364.0,83363.0,0.19450955]
[1744790284796,0.1799302,83376.0,83375.0,0.1199467]
[1744790284995,0.2399059,83376.0,83375.0,0.1199467]
[1744790285391,0.1199472,83378.0,83377.0,0.1199467]
[1744790285592,0.27137006,83378.0,83377.0,0.2050667]
[1744790286194,0.15142286,83378.0,83377.0,0.4550667]
[1744790286396,0.27136816,83378.0,83377.0,0.4669866]
[1744790286784,0.27136816,83378.0,83377.0,0.2169866]
[1744790286989,0.27336816,83378.0,83377.0,0.2050667]
[1744790287295,0.30456816,83378.0,83377.0,0.2051467]
[1744790287792,0.30756816,83378.0,83377.0,8e-05]
[1744790288096,0.30756816,83378.0,83366.0,0.1199613]
[1744790288097,0.1199481,83376.0,83375.0,0.0319]
[1744790292695,0.1199481,83376.0,83375.0,0.0631]
[1744790292897,0.1511481,83376.0,83375.0,0.0631]
[1744790293798,0.1821481,83376.0,83375.0,0.1830496]
[1744790294309,0.1821481,83376.0,83375.0,0.0631]
[1744790296996,0.19162465,83376.0,83375.0,0.0631]
[1744790299001,0.16062465,83376.0,83375.0,0.0631]
[1744790299898,0.19092465,83376.0,83375.0,0.0631]
[1744790304217,0.19092465,83376.0,83375.0,0.1830496]
[1744790304911,0.16062465,83376.0,83375.0,0.5438496]
[1744790305805,0.1199553,83371.0,83370.0,0.000108]
[1744790306008,0.49023185,83371.0,83370.0,0.000108]
[1744790306306,0.119974,83358.0,83357.0,0.3608]
[1744790306507,0.119974,83358.0,83357.0,0.3609458]
[1744790306811,0.12945055,83358.0,83357.0,0.36088]
[1744790306996,0.19235055,83358.0,83357.0,0.4808555]
[1744790307397,0.19235055,83358.0,83357.0,0.36088]
[1744790308203,0.19235055,83358.0,83357.0,0.4808555]
[1744790308400,0.19235055,83358.0,83357.0,0.48963281]
[1744790308709,0.19235055,83358.0,83357.0,0.49163281]
[1744790309207,0.19235055,83358.0,83357.0,0.37157731]
[1744790309410,0.19235055,83358.0,83357.0,0.37165731]
[1744790310809,0.19235055,83358.0,83357.0,0.49163281]
[1744790311112,0.19235055,83358.0,83357.0,0.57975281]
[1744790311310,0.07237655,83358.0,83357.0,0.57975281]
[1744790311507,0.04197655,83358.0,83357.0,0.57975281]
[1744790312010,0.16195055,83358.0,83357.0,0.61185281]
[1744790312215,0.16195055,83358.0,83357.0,0.64295281]
[1744790314803,0.00947655,83358.0,83357.0,0.64295281]
[1744790315415,0.119974,83358.0,83357.0,0.64295281]
[1744790316211,0.12945055,83358.0,83357.0,0.64295281]
[1744790316514,0.12945055,83358.0,83357.0,0.37165731]
[1744790316712,0.12945055,83358.0,83357.0,0.09889731]
[1744790316915,0.22365055,83358.0,83357.0,0.09897731]
[1744790317219,0.22365055,83358.0,83357.0,0.09889731]
[1744790317417,0.22365055,83358.0,83357.0,0.09897731]
[1744790317614,0.22365055,83358.0,83357.0,0.00985731]
[1744790317814,0.22365055,83358.0,83357.0,0.09809731]
[1744790318214,0.22365055,83358.0,83357.0,0.09709731]
[1744790319018,0.22365055,83358.0,83357.0,0.21707281]
[1744790319220,0.22365055,83358.0,83357.0,0.21807281]
[1744790320223,0.22365055,83358.0,83357.0,0.09809731]
[1744790321118,0.22365055,83358.0,83357.0,0.21807281]
[1744790321521,0.22365055,83358.0,83357.0,0.09809731]
[1744790322009,0.214174,83358.0,83357.0,0.09809731]
[1744790322412,0.214174,83358.0,83357.0,0.21807281]
[1744790323023,0.22411406,83358.0,83357.0,0.21807281]
[1744790323611,0.00994006,83358.0,83357.0,0.21807281]
[1744790323814,0.00994006,83358.0,83357.0,0.28097281]
[1744790325724,0.12991406,83358.0,83357.0,0.28097281]
[1744790326517,0.16021406,83358.0,83357.0,0.28097281]
[1744790334516,0.04024006,83358.0,83357.0,0.28097281]
[1744790334822,0.04024006,83358.0,83357.0,0.2721955]
[1744790335424,0.00994006,83358.0,83357.0,0.2721955]
[1744790335723,0.0309,83370.0,83369.0,0.1199582]
[1744790335926,0.0309,83370.0,83369.0,0.5741582]
[1744790336426,0.15191222,83372.0,83371.0,0.1199553]
[1744790336828,0.15191222,83372.0,83371.0,0.2707953]
[1744790337829,0.15191222,83372.0,83371.0,0.2717953]
[1744790338022,0.15191222,83372.0,83371.0,0.2727953]
[1744790338829,0.0324,83373.0,83372.0,0.1199539]
[1744790339125,0.0324,83373.0,83372.0,0.1835539]
[1744790340328,0.00017988,83379.0,83378.0,0.1199453]
[1744790340524,0.00017988,83379.0,83378.0,0.4807453]
[1744790340726,0.00017988,83379.0,83378.0,0.5124453]
[1744790341023,0.12012368,83379.0,83378.0,0.5124453]
[1744790341322,0.00017988,83379.0,83378.0,0.5124453]
[1744790341530,0.00117988,83379.0,83378.0,0.5124453]
[1744790341729,0.03607988,83379.0,83378.0,0.5451453]
[1744790341926,0.03607988,83379.0,83378.0,0.5752453]
[1744790344921,0.03607988,83379.0,83378.0,0.5768453]
[1744790347625,0.04535143,83379.0,83378.0,0.5768453]
[1744790348128,0.04535143,83379.0,83378.0,0.6625653]
[1744790352336,0.04535143,83379.0,83378.0,0.5768453]
[1744790352527,0.04535143,83379.0,83378.0,0.6625653]
[1744790356633,0.04435143,83379.0,83378.0,0.6625653]
[1744790356833,0.04235143,83379.0,83378.0,0.6695653]
[1744790357636,0.04235143,83379.0,83378.0,0.6705653]
[1744790362942,0.00945143,83379.0,83378.0,0.6705653]
[1744790363131,0.0312,83387.0,83386.0,0.1799001]
[1744790363329,0.0312,83387.0,83386.0,0.5407001]
[1744790363732,0.0312,83387.0,83386.0,0.5721001]
[1744790364237,0.0312,83387.0,83386.0,0.5741001]
[1744790364438,0.0312,83387.0,83386.0,0.5771001]
[1744790367037,0.005,83396.0,83394.0,0.1199222]
[1744790367230,0.03187988,83395.0,83394.0,0.2379422]
[1744790367631,0.03187988,83395.0,83394.0,0.5664422]
[1744790368436,0.06507988,83395.0,83394.0,0.5664422]
[1744790370439,0.06507988,83395.0,83394.0,0.6330422]
[1744790370640,0.06507988,83395.0,83394.0,0.6360422]
[1744790371032,0.06507988,83395.0,83394.0,0.6039422]
[1744790371733,0.06507988,83395.0,83394.0,0.61336253]
[1744790373241,0.06507988,83395.0,83394.0,0.6039422]
[1744790374739,0.06507988,83395.0,83394.0,0.5714422]
[1744790375633,0.07464061,83395.0,83394.0,0.5714422]
[1744790378839,0.07464061,83395.0,83394.0,0.6039422]
[1744790380241,0.07464061,83395.0,83394.0,0.6346422]
[1744790381645,0.07464061,83395.0,83394.0,0.6039422]
[1744790382446,0.07464061,83395.0,83394.0,0.6346422]
[1744790383537,0.19456141,83395.0,83394.0,0.6346422]
[1744790384949,0.19456141,83395.0,83394.0,0.2738422]
[1744790385639,0.07464061,83395.0,83394.0,0.2738422]
[1744790386038,0.04294061,83395.0,83394.0,0.2738422]
[1744790386444,0.0324,83402.0,83401.0,0.1199122]
[1744790386645,0.0324,83402.0,83401.0,0.4807122]
[1744790386836,0.03248,83402.0,83401.0,0.5450122]
[1744790387035,8e-05,83402.0,83401.0,0.5450122]
[1744790387241,0.00119406,83406.0,83405.0,0.1199064]
[1744790387548,0.00130207,83406.0,83405.0,0.1199064]
[1744790387746,0.03360207,83406.0,83405.0,0.1818064]
[1744790388749,0.03460207,83406.0,83405.0,0.1818064]
[1744790389252,0.03360207,83406.0,83405.0,0.1818064]
[1744790389851,0.15202649,83409.0,83405.0,0.1218531]
[1744790390052,0.0326,83408.0,83405.0,0.1218531]
[1744790390352,0.0326,83408.0,83407.0,0.1798553]
[1744790390550,0.0326,83408.0,83407.0,0.2627353]
[1744790394452,0.0642,83408.0,83407.0,0.2627353]
[1744790394852,0.0642,83408.0,83407.0,0.1798553]
[1744790395053,0.0642,83408.0,83407.0,0.2627353]
[1744790395553,0.06428,83408.0,83407.0,0.2627353]
[1744790398150,0.06428,83408.0,83407.0,0.1798553]
[1744790398350,0.06428,83408.0,83407.0,0.08288]
[1744790398557,0.1841821,83408.0,83407.0,0.2027836]
[1744790399246,0.19395612,83408.0,83407.0,0.2027836]
[1744790400452,0.06428,83408.0,83407.0,0.2027836]
[1744790400656,0.0642,83408.0,83407.0,0.2027836]
[1744790400856,0.1938023,83408.0,83407.0,0.2027836]
[1744790401047,0.1938823,83408.0,83407.0,0.2352836]
[1744790402352,0.1938823,83408.0,83407.0,0.2027836]
[1744790402552,0.119905,83406.0,83405.0,0.54995197]
[1744790403058,0.1951052,83406.0,83405.0,0.54995197]
[1744790404948,0.1951052,83406.0,83405.0,0.54984396]
[1744790405254,0.8059052,83406.0,83405.0,0.00918716]
[1744790405561,0.1199165,83398.0,83384.0,0.01029088]
[1744790405856,0.1199438,83379.0,83373.0,0.1199523]
[1744790406048,0.1199438,83379.0,83376.0,0.08284]
[1744790406251,0.223344,83379.0,83373.0,0.0001458]
[1744790406447,0.1199596,83368.0,83367.0,0.00515789]
[1744790407052,0.1199596,83368.0,83367.0,0.00523789]
[1744790407249,0.1296598,83368.0,83367.0,0.00523789]
[1744790407452,0.1199712,83360.0,83359.0,0.00017988]
[1744790407848,0.1199712,83360.0,83359.0,0.00025988]
[1744790407849,0.1296714,83360.0,83359.0,0.00025988]
[1744790408050,0.4904714,83360.0,83359.0,0.00025988]
[1744790408244,0.5534714,83360.0,83359.0,0.00025988]
[1744790409062,0.5534714,83360.0,83359.0,0.00125988]
[1744790409558,0.5534714,83360.0,83359.0,0.01016629]
[1744790409757,0.5534714,83360.0,83359.0,0.00217988]
[1744790409958,0.5534714,83360.0,83359.0,0.00225988]
[1744790410150,0.5534714,83360.0,83359.0,0.00117988]
[1744790410851,0.1926714,83360.0,83359.0,0.12115248]
[1744790411052,0.1926714,83360.0,83359.0,0.12126049]
[1744790411252,0.1926714,83360.0,83359.0,0.12026049]
[1744790411452,0.1926714,83360.0,83359.0,0.12945035]
[1744790411961,0.1926714,83360.0,83359.0,0.00947775]
[1744790412753,0.1926714,83360.0,83359.0,0.00955775]
[1744790413054,0.1926714,83360.0,83359.0,0.01055775]
[1744790413463,0.1926714,83360.0,83359.0,0.00955775]
[1744790414156,0.1926714,83360.0,83359.0,0.01055775]
[1744790414951,0.1926714,83360.0,83359.0,0.01036974]
[1744790415354,0.1926714,83360.0,83359.0,0.01047775]
[1744790415747,0.1926714,83360.0,83359.0,0.00947775]
[1744790416049,0.1926714,83360.0,83359.0,0.12945035]
[1744790416256,0.1926714,83360.0,83359.0,0.00947775]
[1744790416563,0.1926714,83360.0,83359.0,0.01047775]
[1744790418658,0.1926714,83360.0,83359.0,0.01147775]
[1744790419657,0.1926714,83360.0,83359.0,0.01155775]
[1744790420060,0.1926714,83360.0,83359.0,0.01136974]
[1744790420360,0.1926714,83360.0,83359.0,0.01055775]
[1744790420855,0.1926714,83360.0,83359.0,0.00955775]
[1744790421050,0.1926714,83360.0,83359.0,0.01055775]
[1744790423058,0.1926714,83360.0,83359.0,0.00955775]
[1744790423262,0.0727002,83360.0,83359.0,0.00955775]
[1744790426160,0.0727002,83360.0,83359.0,0.12953035]
[1744790426850,0.0727002,83360.0,83359.0,0.16113035]
[1744790428660,0.0419002,83360.0,83359.0,0.16113035]
[1744790428865,0.0419002,83360.0,83359.0,0.19383035]
[1744790430962,0.0419002,83360.0,83359.0,0.12953035]
[1744790431163,0.0419002,83360.0,83359.0,0.12945035]
[1744790431463,0.1068002,83360.0,83359.0,0.12953035]
[1744790431960,0.4027002,83360.0,83359.0,0.16233035]
[1744790432160,0.4027002,83360.0,83359.0,0.19513035]
[1744790434359,0.3705002,83360.0,83359.0,0.19513035]
[1744790434753,0.0097002,83360.0,83359.0,0.19513035]
[1744790437652,0.0097002,83360.0,83359.0,0.18387655]
[1744790438867,0.0097002,83360.0,83359.0,0.19276306]
[1744790441262,0.0097002,83360.0,83359.0,0.19268306]
[1744790441568,0.0418002,83360.0,83359.0,0.19276306]
[1744790442468,0.0097002,83360.0,83359.0,0.19276306]
[1744790442769,0.0097002,83360.0,83359.0,0.55356306]
[1744790445973,0.0097002,83360.0,83359.0,0.63904306]
[1744790446776,0.0097002,83360.0,83359.0,0.64004306]
[1744790448772,0.0097002,83360.0,83359.0,0.63996306]
[1744790449071,0.0097002,83360.0,83359.0,0.64004306]